bitfinex/quotes_BTCUSD_20240715
["timestamp","ask_amount","ask_price","bid_price","bid_amount"]
[1721013342537,2.96782228,62632.0,62631.0,0.00046534]
[1721013342747,2.30570437,62632.0,62631.0,0.00046534]
[1721013342931,1.13411837,62632.0,62631.0,0.00046534]
[1721013343138,0.41563637,62632.0,62631.0,0.00046534]
[1721013343472,0.55933237,62632.0,62631.0,0.00046534]
[1721013343803,0.84772537,62632.0,62631.0,0.00046534]
[1721013344004,1.13511837,62632.0,62631.0,0.00046534]
[1721013344343,0.146717,62623.0,62622.0,0.009174]
[1721013344539,0.14790695,62623.0,62622.0,0.009174]
[1721013344819,0.003,62626.0,62622.0,0.584631]
[1721013345020,0.003,62625.0,62622.0,0.153474]
[1721013345226,0.003,62625.0,62624.0,0.143714]
[1721013345601,0.003,62623.0,62622.0,0.297191]
[1721013345822,0.00306353,62631.0,62630.0,0.0627]
[1721013346032,0.00306353,62632.0,62631.0,0.143698]
[1721013346234,0.00306353,62632.0,62631.0,1.15008195]
[1721013346641,0.003,62641.0,62640.0,0.493334]
[1721013346841,1.0,62647.0,62641.0,0.143674]
[1721013346842,0.003,62642.0,62641.0,0.143674]
[1721013347188,0.003,62642.0,62641.0,0.430025]
[1721013347385,0.003,62644.0,62643.0,0.143671]
[1721013347745,0.003,62644.0,62640.0,0.0613]
[1721013347746,0.003,62641.0,62640.0,0.0613]
[1721013348541,0.00418995,62641.0,62640.0,0.0613]
[1721013348973,0.00518995,62641.0,62640.0,0.0693]
[1721013349526,0.004,62641.0,62640.0,0.0693]
[1721013349975,0.004,62641.0,62640.0,0.500334]
[1721013350130,0.004,62641.0,62640.0,1.075046]
[1721013350131,0.001,62641.0,62640.0,1.075046]
[1721013350343,0.001,62641.0,62640.0,1.154446]
[1721013351196,1.0,62647.0,62646.0,0.430992]
[1721013351395,1.0,62647.0,62646.0,0.429992]
[1721013351598,1.0,62647.0,62646.0,0.71732]
[1721013351798,1.0,62647.0,62646.0,0.77932]
[1721013351999,1.0,62647.0,62646.0,0.77832]
[1721013352490,1.0,62647.0,62646.0,0.78832]
[1721013352693,1.001,62647.0,62646.0,0.78832]
[1721013352897,1.001,62647.0,62646.0,0.490992]
[1721013353093,1.00183,62647.0,62646.0,0.77832]
[1721013353794,1.00183,62647.0,62646.0,0.490992]
[1721013354020,1.00183,62647.0,62646.0,0.205664]
[1721013354254,1.00283,62647.0,62646.0,0.218664]
[1721013354609,1.00083,62647.0,62646.0,0.205664]
[1721013354842,1.00083,62647.0,62641.0,0.0613]
[1721013354843,0.2,62643.0,62641.0,0.0613]
[1721013355176,0.2,62643.0,62634.0,0.0827]
[1721013355177,0.003,62641.0,62634.0,0.0827]
[1721013355376,0.003,62639.0,62634.0,0.0827]
[1721013355531,0.2,62636.0,62632.0,0.204995]
[1721013355728,0.2,62636.0,62630.0,0.287398]
[1721013355729,0.00118995,62638.0,62633.0,0.143693]
[1721013355972,0.00118995,62638.0,62632.0,0.143696]
[1721013356221,0.00118995,62638.0,62630.0,0.287398]
[1721013356332,0.00118995,62638.0,62632.0,0.143696]
[1721013357386,0.00118995,62638.0,62631.0,0.143697]
[1721013357387,0.2,62636.0,62631.0,0.143697]
[1721013357641,0.2,62636.0,62622.0,0.106174]
[1721013357642,0.003,62633.0,62624.0,0.206113]
[1721013357850,0.2,62630.0,62624.0,0.0624]
[1721013358077,0.2,62630.0,62622.0,0.009174]
[1721013358078,0.143708,62627.0,62622.0,0.009174]
[1721013358276,0.14489795,62627.0,62622.0,0.009174]
[1721013359033,0.00118995,62627.0,62624.0,0.01]
[1721013359234,0.003,62623.0,62622.0,0.009174]
[1721013359435,0.76317135,62623.0,62622.0,0.009174]
[1721013359894,0.33202035,62623.0,62622.0,0.009174]
[1721013360097,0.003,62623.0,62622.0,0.009174]
[1721013360294,0.146717,62623.0,62622.0,0.009174]
[1721013360663,0.003,62623.0,62622.0,0.018174]
[1721013360870,0.003,62623.0,62622.0,0.161893]
[1721013361073,0.003,62623.0,62622.0,0.234993]
[1721013361285,0.004,62623.0,62622.0,0.242993]
[1721013361488,0.001,62623.0,62622.0,0.099274]
[1721013361695,0.00180786,62623.0,62622.0,0.830869]
[1721013361869,0.00180786,62623.0,62622.0,1.182307]
[1721013362098,0.003,62627.0,62626.0,0.43113]
[1721013362444,0.003,62631.0,62623.0,0.08005238]
[1721013362647,0.003,62631.0,62630.0,0.143701]
[1721013362965,0.00306353,62638.0,62623.0,0.08324564]
[1721013362966,0.003,62635.0,62633.0,0.066]
[1721013363197,0.003,62635.0,62634.0,0.287383]
[1721013363353,0.003,62637.0,62636.0,0.143687]
[1721013363960,0.003,62637.0,62636.0,0.142687]
[1721013364160,0.003,62637.0,62636.0,0.219487]
[1721013364372,0.003,62637.0,62636.0,0.506861]
[1721013364582,0.003,62637.0,62622.0,0.009174]
[1721013364583,0.718585,62623.0,62622.0,0.009174]
[1721013364790,0.88908737,62623.0,62622.0,0.009174]
[1721013364957,1.93148577,62623.0,62622.0,0.009174]
[1721013365157,2.45269094,62623.0,62622.0,0.009174]
[1721013365359,2.14321093,62623.0,62622.0,0.009174]
[1721013365638,1.77454952,62623.0,62622.0,0.009174]
[1721013365835,1.62395537,62623.0,62622.0,0.009174]
[1721013366098,0.11970866,62623.0,62622.0,0.009174]
[1721013366299,0.86368598,62623.0,62622.0,0.009174]
[1721013367228,0.86468598,62623.0,62622.0,0.018174]
[1721013367511,0.86468598,62623.0,62622.0,0.023174]
[1721013367710,1.15311998,62623.0,62622.0,0.032174]
[1721013368132,1.15211998,62623.0,62622.0,0.018174]
[1721013368267,1.15811998,62623.0,62622.0,0.019174]
[1721013368469,1.15711998,62623.0,62622.0,0.010174]
[1721013368891,1.15811998,62623.0,62622.0,0.019174]
[1721013369140,1.15211998,62623.0,62622.0,0.018174]
[1721013369313,0.16442566,62623.0,62622.0,0.018174]
[1721013369526,0.02270866,62623.0,62622.0,0.018174]
[1721013370133,0.47806203,62623.0,62622.0,0.018174]
[1721013370665,0.47706203,62623.0,62622.0,0.009174]
[1721013370998,0.76349603,62623.0,62622.0,0.017174]
[1721013371786,0.76249603,62623.0,62622.0,0.009174]
[1721013372005,0.76349603,62623.0,62622.0,0.017174]
[1721013372201,0.74678737,62623.0,62622.0,0.017174]
[1721013372401,0.74578737,62623.0,62622.0,0.009174]
[1721013372803,1.03322137,62623.0,62622.0,0.009174]
[1721013373003,1.85891151,62623.0,62622.0,0.009174]
[1721013373332,1.93858937,62623.0,62622.0,0.009174]
[1721013373717,1.93858937,62623.0,62622.0,0.017174]
[1721013373718,2.01122822,62623.0,62622.0,0.017174]
[1721013373920,2.01022822,62623.0,62622.0,0.009174]
[1721013374331,2.01022822,62623.0,62622.0,0.017174]
[1721013374332,2.85754128,62623.0,62622.0,0.017174]
[1721013374563,2.85754128,62623.0,62622.0,0.009174]
[1721013374564,2.99672407,62623.0,62622.0,0.009174]
[1721013374814,2.87732599,62623.0,62622.0,0.010174]
[1721013375056,3.30506699,62623.0,62622.0,0.018174]
[1721013375266,3.25670555,62623.0,62622.0,0.018174]
[1721013375470,3.31548638,62623.0,62622.0,0.018174]
[1721013375679,3.17030438,62623.0,62622.0,0.017174]
[1721013375856,3.17030438,62623.0,62622.0,0.018174]
[1721013375857,2.87635547,62623.0,62622.0,0.018174]
[1721013376256,2.99566486,62623.0,62622.0,0.018174]
[1721013376585,2.99566486,62623.0,62620.0,0.009174]
[1721013376586,3.02397237,62621.0,62620.0,0.009174]
[1721013376733,3.76152882,62621.0,62620.0,0.009174]
[1721013376939,3.49514082,62621.0,62620.0,0.009174]
[1721013377138,3.33821782,62621.0,62620.0,0.009174]
[1721013377365,3.4822197,62621.0,62620.0,0.009174]
[1721013377521,3.38680847,62621.0,62620.0,0.009174]
[1721013378102,3.36651493,62621.0,62620.0,0.009174]
[1721013378266,3.68779107,62621.0,62620.0,0.001001]
[1721013378439,3.71315804,62621.0,62620.0,0.001001]
[1721013378624,3.80856799,62621.0,62620.0,0.001001]
[1721013378831,2.81147437,62619.0,62618.0,1e-06]
[1721013379079,4.828805,62619.0,62618.0,1e-06]
[1721013379231,4.90031042,62619.0,62618.0,1e-06]
[1721013379429,4.077061,62619.0,62618.0,1e-06]
[1721013379684,3.66433346,62619.0,62618.0,1e-06]
[1721013379887,3.48308346,62619.0,62618.0,1e-06]
[1721013380050,3.46388746,62619.0,62618.0,1e-06]
[1721013380259,3.33632946,62619.0,62618.0,1e-06]
[1721013381130,3.34032946,62619.0,62618.0,1e-06]
[1721013381244,2.64642446,62619.0,62618.0,1e-06]
[1721013381452,2.25590893,62619.0,62618.0,1e-06]
[1721013381652,1.81787037,62619.0,62618.0,1e-06]
[1721013381874,1.53041837,62619.0,62618.0,1e-06]
[1721013382216,1.39971837,62619.0,62618.0,1e-06]
[1721013382390,1.41642703,62619.0,62618.0,1e-06]
[1721013382602,1.40242703,62619.0,62618.0,1e-06]
[1721013382807,1.51642703,62619.0,62618.0,1e-06]
[1721013383183,1.79887903,62619.0,62618.0,1e-06]
[1721013383386,1.90187903,62619.0,62618.0,1e-06]
[1721013383584,1.61442703,62619.0,62618.0,1e-06]
[1721013383811,1.90187903,62619.0,62618.0,1e-06]
[1721013384014,1.92487903,62619.0,62618.0,1e-06]
[1721013384216,1.63742703,62619.0,62618.0,1e-06]
[1721013384865,1.92487903,62619.0,62618.0,1e-06]
[1721013385482,1.53742703,62619.0,62618.0,1e-06]
[1721013385679,1.45442703,62619.0,62618.0,1e-06]
[1721013385892,1.45442703,62619.0,62618.0,0.060801]
[1721013386031,1.45442703,62619.0,62618.0,1e-06]
[1721013387358,0.03670866,62619.0,62618.0,1e-06]
[1721013387768,1.35561698,62619.0,62618.0,1e-06]
[1721013387918,1.41561698,62619.0,62618.0,1e-06]
[1721013388085,1.34161698,62619.0,62618.0,1e-06]
[1721013388293,1.62606898,62619.0,62618.0,1e-06]
[1721013388492,1.63706898,62619.0,62618.0,1e-06]
[1721013388713,1.79706898,62619.0,62618.0,1e-06]
[1721013388934,1.90906898,62619.0,62618.0,1e-06]
[1721013389135,1.90425192,62619.0,62618.0,1e-06]
[1721013390109,1.92225192,62619.0,62618.0,1e-06]
[1721013390339,1.91725192,62619.0,62618.0,1e-06]
[1721013391002,1.92125192,62619.0,62618.0,1e-06]
[1721013391377,1.90825192,62619.0,62618.0,1e-06]
[1721013391588,1.92225192,62619.0,62618.0,1e-06]
[1721013392111,1.90825192,62619.0,62618.0,1e-06]
[1721013392536,1.82225192,62619.0,62618.0,1e-06]
[1721013392736,1.81825192,62619.0,62618.0,1e-06]
[1721013392936,1.78125192,62619.0,62618.0,1e-06]
[1721013393164,1.78425192,62619.0,62618.0,1e-06]
[1721013393369,1.79525192,62619.0,62618.0,1e-06]
[1721013393699,1.79625192,62619.0,62618.0,1e-06]
[1721013394045,1.79525192,62619.0,62618.0,1e-06]
[1721013394421,1.78125192,62619.0,62618.0,1e-06]
[1721013394833,1.79325192,62619.0,62618.0,1e-06]
[1721013395921,1.73325192,62619.0,62618.0,1e-06]
[1721013396318,1.72125192,62619.0,62618.0,1e-06]
[1721013396918,1.78525192,62619.0,62618.0,1e-06]
[1721013397149,1.78125192,62619.0,62618.0,1e-06]
[1721013397804,1.90500278,62619.0,62618.0,1e-06]
[1721013398045,1.92800278,62619.0,62618.0,1e-06]
[1721013398196,1.91400278,62619.0,62618.0,1e-06]
[1721013398602,1.92600278,62619.0,62618.0,1e-06]
[1721013398804,1.81625192,62619.0,62618.0,1e-06]
[1721013400353,1.83546843,62619.0,62618.0,1e-06]
[1721013400580,1.83546932,62619.0,62618.0,1e-06]
[1721013401108,2.22692132,62619.0,62618.0,1e-06]
[1721013401557,2.21092132,62619.0,62618.0,1e-06]
[1721013401731,1.92846932,62619.0,62618.0,1e-06]
[1721013401936,1.94246932,62619.0,62618.0,1e-06]
[1721013402135,1.92325192,62619.0,62618.0,1e-06]
[1721013402334,1.91655732,62619.0,62618.0,1e-06]
[1721013402779,1.77055732,62619.0,62618.0,1e-06]
[1721013403008,1.74636032,62619.0,62618.0,1e-06]
[1721013403291,1.75155519,62619.0,62618.0,1e-06]
[1721013403640,1.46410319,62619.0,62618.0,1e-06]
[1721013403844,1.42190832,62619.0,62618.0,1e-06]
[1721013404722,0.93581995,62619.0,62618.0,1e-06]
[1721013404925,0.93581995,62619.0,62618.0,0.141201]
[1721013405194,1.03445632,62619.0,62618.0,0.141201]
[1721013405572,1.04645632,62619.0,62618.0,0.141201]
[1721013406003,1.03445632,62619.0,62618.0,0.141201]
[1721013406422,1.13945632,62619.0,62618.0,0.141201]
[1721013406958,1.14045632,62619.0,62618.0,0.141201]
[1721013407371,1.13945632,62619.0,62618.0,0.141201]
[1721013408376,1.42690832,62619.0,62618.0,0.141201]
[1721013408578,1.42690832,62619.0,62618.0,1e-06]
[1721013409497,1.79437371,62619.0,62618.0,1e-06]
[1721013409697,1.97949162,62619.0,62618.0,1e-06]
[1721013410100,1.46992171,62619.0,62618.0,1e-06]
[1721013410520,1.46971413,62619.0,62618.0,1e-06]
[1721013410899,1.75716616,62619.0,62618.0,1e-06]
[1721013411101,1.81716616,62619.0,62618.0,1e-06]
[1721013411495,1.56543787,62619.0,62618.0,1e-06]
[1721013411673,1.46971416,62619.0,62618.0,1e-06]
[1721013411846,1.60150494,62619.0,62618.0,1e-06]
[1721013412053,1.91288987,62619.0,62618.0,1e-06]
[1721013412257,1.83387482,62619.0,62618.0,1e-06]
[1721013412411,1.99599273,62619.0,62618.0,1e-06]
[1721013412615,1.83387482,62619.0,62618.0,1e-06]
[1721013413090,2.54807482,62619.0,62618.0,1e-06]
[1721013413313,3.78048796,62619.0,62618.0,1e-06]
[1721013413512,3.75170554,62619.0,62618.0,1e-06]
[1721013413711,3.78049846,62619.0,62618.0,1e-06]
[1721013413914,3.93761637,62619.0,62618.0,1e-06]
[1721013414345,1.76841737,62607.0,62606.0,0.009174]
[1721013414545,2.44332406,62607.0,62606.0,0.009174]
[1721013414889,2.44332404,62607.0,62606.0,0.009174]
[1721013415041,2.44332433,62607.0,62606.0,0.009174]
[1721013415254,2.29967925,62607.0,62606.0,0.009174]
[1721013415461,2.75558625,62607.0,62606.0,0.009174]
[1721013415938,2.48207925,62607.0,62606.0,0.009174]
[1721013416143,2.48135527,62607.0,62606.0,0.009174]
[1721013416753,2.45328633,62607.0,62606.0,0.009174]
[1721013416971,2.48181156,62607.0,62606.0,0.009174]
[1721013417369,2.46781156,62607.0,62606.0,0.009174]
[1721013417799,2.48181156,62607.0,62606.0,0.009174]
[1721013418061,2.21341156,62607.0,62606.0,0.009174]
[1721013418264,2.29941156,62607.0,62606.0,0.009174]
[1721013418447,2.31341156,62607.0,62606.0,0.009174]
[1721013418853,2.35708948,62607.0,62606.0,0.009174]
[1721013419097,2.21341156,62607.0,62606.0,0.009174]
[1721013419515,2.35707652,62607.0,62606.0,0.009174]
[1721013419667,1.59807416,62607.0,62606.0,0.009174]
[1721013419900,1.69010056,62607.0,62606.0,0.009174]
[1721013420082,1.97857443,62607.0,62606.0,0.009174]
[1721013420543,1.91931132,62607.0,62606.0,0.009174]
[1721013420735,1.96531132,62607.0,62606.0,0.009174]
[1721013421113,2.09656689,62607.0,62606.0,0.009174]
[1721013421539,1.92144898,62607.0,62606.0,0.009174]
[1721013421938,1.93244898,62607.0,62606.0,0.009174]
[1721013422368,2.13307471,62607.0,62606.0,0.009174]
[1721013422710,2.18471327,62607.0,62606.0,0.009174]
[1721013423092,2.18471392,62607.0,62606.0,0.009174]
[1721013423665,2.81805644,62607.0,62606.0,0.009174]
[1721013424111,2.78742092,62607.0,62606.0,0.009174]
[1721013424450,2.78259492,62607.0,62606.0,0.009174]
[1721013424653,2.78259492,62607.0,62600.0,0.009163]
[1721013424654,2.24919916,62602.0,62600.0,0.009163]
[1721013424973,1.68628792,62602.0,62600.0,0.009163]
[1721013425172,1.97381792,62602.0,62600.0,0.009163]
[1721013425591,1.87446196,62602.0,62600.0,0.009163]
[1721013425784,1.8228234,62602.0,62600.0,0.009163]
[1721013425988,1.96642127,62602.0,62600.0,0.009163]
[1721013426256,1.87446196,62602.0,62600.0,0.009163]
[1721013426445,2.01805992,62602.0,62600.0,0.009163]
[1721013426653,2.01804754,62602.0,62600.0,0.009163]
[1721013426806,1.8228234,62602.0,62600.0,0.009163]
[1721013427150,1.97741071,62602.0,62600.0,0.009163]
[1721013427358,1.8338234,62602.0,62600.0,0.009163]
[1721013427552,1.85053206,62602.0,62600.0,0.009163]
[1721013427989,1.83953206,62602.0,62600.0,0.009163]
[1721013428285,1.85353206,62602.0,62600.0,0.009163]
[1721013428833,1.84010125,62602.0,62600.0,0.009163]
[1721013430215,1.85410125,62602.0,62600.0,0.009163]
[1721013430445,1.99760967,62602.0,62600.0,0.009163]
[1721013430842,1.98360967,62602.0,62600.0,0.009163]
[1721013431057,1.99760967,62602.0,62600.0,0.009163]
[1721013431838,1.51455125,62602.0,62600.0,0.009163]
[1721013432042,1.51455125,62602.0,62601.0,0.23641538]
[1721013432043,0.03868866,62602.0,62601.0,0.23641538]
[1721013432386,0.02198,62602.0,62601.0,0.66771738]
[1721013432716,0.146748,62610.0,62607.0,0.1462]
[1721013432717,0.003,62610.0,62607.0,0.1462]
[1721013432961,0.003,62610.0,62608.0,0.1462]
[1721013433294,0.003,62610.0,62609.0,0.1462]
[1721013433481,0.634241,62610.0,62609.0,0.1462]
[1721013433605,0.74568516,62610.0,62609.0,0.1462]
[1721013434228,0.74568516,62610.0,62609.0,0.1422]
[1721013436911,0.74568516,62610.0,62609.0,0.13794544]
[1721013437317,0.74668516,62610.0,62609.0,0.14394544]
[1721013438882,1.03417916,62610.0,62609.0,0.14394544]
[1721013440209,1.03317916,62610.0,62609.0,0.13794544]
[1721013440406,1.32167316,62610.0,62609.0,0.14394544]
[1721013442225,1.33838182,62610.0,62609.0,0.14394544]
[1721013443610,1.33838182,62610.0,62609.0,0.006]
[1721013444825,1.33838182,62610.0,62609.0,0.0056]
[1721013445069,1.39838182,62610.0,62609.0,0.0055]
[1721013445275,1.33838182,62610.0,62609.0,0.0055]
[1721013445442,1.39838182,62610.0,62609.0,0.0053]
[1721013445621,1.49838182,62610.0,62609.0,0.0053]
[1721013445826,1.49838182,62610.0,62609.0,0.0049]
[1721013446355,1.49838182,62610.0,62609.0,0.0046]
[1721013446786,1.81794925,62610.0,62609.0,0.0046]
[1721013446979,1.93654079,62610.0,62609.0,0.0046]
[1721013447192,1.93655358,62610.0,62609.0,0.0046]
[1721013447389,1.84094925,62610.0,62609.0,0.0046]
[1721013447777,1.31779916,62602.0,62601.0,0.073463]
[1721013447987,1.32079916,62602.0,62601.0,0.073463]
[1721013449550,1.03326916,62602.0,62601.0,0.073463]
[1721013450404,0.46503266,62610.0,62609.0,0.143749]
[1721013450405,0.01753866,62610.0,62609.0,0.143749]
[1721013450654,0.00083,62619.0,62614.0,0.960487]
[1721013450801,0.00083,62619.0,62618.0,0.143728]
[1721013451006,0.00083,62619.0,62618.0,0.94468762]
[1721013451275,0.00083,62619.0,62618.0,0.95391976]
[1721013453652,0.00183,62619.0,62618.0,0.30176014]
[1721013454357,0.00183,62619.0,62618.0,0.29476014]
[1721013454358,0.00083,62619.0,62618.0,0.29476014]
[1721013454575,0.00183,62619.0,62618.0,0.30076014]
[1721013454721,0.00183,62619.0,62618.0,0.58821714]
[1721013455138,0.00083,62619.0,62618.0,0.58221714]
[1721013455519,0.00083,62619.0,62618.0,0.15103214]
[1721013456660,0.00183,62619.0,62618.0,0.15803214]
[1721013457102,0.00083,62619.0,62618.0,0.15103214]
[1721013457247,0.00183,62619.0,62618.0,0.15803214]
[1721013457816,0.00083,62619.0,62618.0,0.15103214]
[1721013458023,0.00183,62619.0,62618.0,0.15703214]
[1721013458687,0.00183,62619.0,62618.0,0.16649225]
[1721013459630,0.00183,62619.0,62618.0,0.15703214]
[1721013460185,0.00083,62619.0,62618.0,0.15103214]
[1721013460401,0.00183,62619.0,62618.0,0.15703214]
[1721013460931,0.00083,62619.0,62618.0,0.15103214]
[1721013461341,0.00183,62619.0,62618.0,0.15703214]
[1721013461722,0.00083,62619.0,62618.0,0.15103214]
[1721013462121,0.00183,62619.0,62618.0,0.15703214]
[1721013463528,0.00183,62619.0,62618.0,0.15103214]
[1721013463529,0.00083,62619.0,62618.0,0.15103214]
[1721013463704,0.00183,62619.0,62618.0,0.15703214]
[1721013463910,0.00183,62619.0,62618.0,0.59141075]
[1721013464111,0.00083,62619.0,62618.0,0.87286775]
[1721013464292,0.00083,62619.0,62618.0,0.97286775]
[1721013464497,0.00183,62619.0,62618.0,1.26632475]
[1721013464713,0.00183,62619.0,62618.0,1.26313114]
[1721013465317,0.00183,62619.0,62618.0,1.36013114]
[1721013466485,0.00083,62623.0,62618.0,1.36013114]
[1721013466486,0.00083,62623.0,62618.0,1.81598814]
[1721013466685,0.00083,62623.0,62622.0,1.343933]
[1721013467091,0.00083,62623.0,62622.0,1.25493852]
[1721013467237,0.00083,62623.0,62622.0,1.35193852]
[1721013468550,0.00183,62623.0,62622.0,1.35793852]
[1721013470120,0.00183,62623.0,62622.0,1.25893852]
[1721013470473,0.00183,62623.0,62622.0,1.35793852]
[1721013470851,0.00183,62623.0,62622.0,1.25893852]
[1721013471751,0.00183,62623.0,62622.0,1.35793852]
[1721013481205,0.0016378,62623.0,62622.0,1.35793852]
[1721013482460,0.01834646,62623.0,62622.0,1.35793852]
[1721013483856,0.01834646,62623.0,62622.0,1.07050052]
[1721013487810,0.01834646,62623.0,62622.0,0.97350052]
[1721013487981,0.01834646,62623.0,62622.0,1.07050052]
[1721013489482,0.01834646,62623.0,62622.0,1.0545529]
[1721013489775,0.01834646,62623.0,62622.0,1.4389909]
[1721013489998,0.00306353,62635.0,62631.0,0.097]
[1721013490346,1.0,62637.0,62635.0,0.143689]
[1721013490465,1.0,62637.0,62634.0,0.143691]
[1721013490672,1.0,62637.0,62636.0,0.00890163]
[1721013490917,1.0,62637.0,62636.0,0.10019278]
[1721013491120,0.01670866,62642.0,62641.0,0.143675]
[1721013491318,0.01670866,62642.0,62641.0,0.142675]
[1721013491525,0.145492,62647.0,62641.0,0.01206472]
[1721013491726,0.00083,62647.0,62644.0,0.143666]
[1721013491882,0.20083,62647.0,62641.0,0.00887232]
[1721013492077,0.20083,62647.0,62640.0,0.143676]
[1721013492078,0.20083,62647.0,62645.0,0.00886932]
[1721013492275,0.20083,62647.0,62641.0,0.143675]
[1721013492494,0.20083,62647.0,62639.0,0.28736]
[1721013492495,0.00083,62647.0,62646.0,0.00886857]
[1721013492704,0.20083,62647.0,62644.0,0.00319226]
[1721013492906,0.20083,62647.0,62646.0,0.00786857]
[1721013493108,0.20083,62647.0,62645.0,0.00870265]
[1721013493333,0.20083,62647.0,62646.0,0.0087019]
[1721013493810,0.20183,62647.0,62646.0,0.014]
[1721013494023,0.00183,62647.0,62646.0,0.0227019]
[1721013496228,0.45693616,62647.0,62646.0,0.0227019]
[1721013496443,0.74426016,62647.0,62646.0,0.014]
[1721013496843,0.345492,62647.0,62646.0,0.014]
[1721013497651,0.145492,62647.0,62646.0,0.014]
[1721013499055,0.00183,62647.0,62646.0,0.014]
[1721013499260,0.00183,62647.0,62646.0,0.02581104]
[1721013500736,0.00183,62647.0,62646.0,0.81043104]
[1721013500938,0.00183,62647.0,62646.0,0.80181224]
[1721013501095,0.00183,62647.0,62646.0,0.81043104]
[1721013501519,0.00183,62647.0,62646.0,0.02581104]
[1721013502561,0.00183,62647.0,62646.0,0.45680304]
[1721013503101,0.00183,62647.0,62646.0,1.10855904]
[1721013504167,0.00183,62647.0,62646.0,1.20755904]
[1721013504798,0.00183,62647.0,62646.0,1.03145904]
[1721013504970,0.00183,62647.0,62646.0,0.02581104]
[1721013505817,0.31327416,62647.0,62646.0,0.0226188]
[1721013505989,0.88856016,62647.0,62646.0,0.0226188]
[1721013506195,0.88856016,62647.0,62646.0,0.014]
[1721013506394,0.777116,62647.0,62646.0,0.014]
[1721013506797,0.88856016,62647.0,62646.0,0.014]
[1721013507175,0.577116,62647.0,62646.0,0.014]
[1721013507812,0.00183,62647.0,62646.0,0.157664]
[1721013508019,0.00183,62647.0,62646.0,0.1694373]
[1721013508246,0.00183,62647.0,62646.0,0.5167653]
[1721013508417,0.00183,62647.0,62646.0,0.8040933]
[1721013509816,0.00183,62647.0,62646.0,0.9030933]
[1721013510600,0.00183,62647.0,62646.0,1.0000933]
[1721013510884,0.00183,62647.0,62646.0,1.2874213]
[1721013512217,0.00183,62647.0,62646.0,1.4559213]
[1721013512466,0.00183,62647.0,62646.0,2.0713493]
[1721013512663,0.01753866,62666.0,62646.0,2.0713493]
[1721013512664,0.01753866,62666.0,62665.0,0.14362]
[1721013512821,0.01753866,62666.0,62665.0,0.43405219]
[1721013513023,0.01753866,62666.0,62665.0,0.72982633]
[1721013513741,0.01753866,62666.0,62665.0,0.44258533]
[1721013514143,0.01753866,62666.0,62665.0,0.72982633]
[1721013514369,0.01753866,62666.0,62665.0,0.43939414]
[1721013515356,0.01753866,62666.0,62665.0,0.00853314]
[1721013515540,0.01753866,62666.0,62665.0,0.00953314]
[1721013515715,0.01753866,62666.0,62665.0,0.001]
[1721013515921,0.01753866,62666.0,62665.0,0.00939118]
[1721013516123,0.01753866,62666.0,62665.0,0.001]
[1721013516326,0.01753866,62666.0,62665.0,0.00939118]
[1721013516507,0.01753866,62666.0,62665.0,0.001]
[1721013516707,0.01753866,62666.0,62665.0,0.00939118]
[1721013517909,0.47260082,62666.0,62665.0,0.00939118]
[1721013518114,0.90503782,62666.0,62665.0,0.00939118]
[1721013518313,0.16273866,62666.0,62665.0,0.001]
[1721013518747,0.16580219,62666.0,62665.0,0.001]
[1721013519149,0.16273866,62666.0,62665.0,0.001]
[1721013519504,0.16273866,62666.0,62665.0,0.01075758]
[1721013519712,0.16273866,62666.0,62665.0,0.001]
[1721013519915,0.01753866,62666.0,62665.0,0.001]
[1721013520313,0.01753866,62666.0,62665.0,0.00941231]
[1721013520644,0.01753866,62666.0,62665.0,0.001]
[1721013520980,0.02060219,62666.0,62665.0,0.001]
[1721013521582,0.01753866,62666.0,62665.0,0.001]
[1721013522231,0.01753866,62666.0,62665.0,0.00940997]
[1721013527087,0.01753866,62666.0,62665.0,0.00840997]
[1721013527287,0.01753866,62666.0,62665.0,0.01240997]
[1721013527490,0.01753866,62666.0,62665.0,0.004]
[1721013527690,0.01753866,62666.0,62665.0,0.01239797]
[1721013528292,0.21753866,62666.0,62665.0,0.01239797]
[1721013528632,0.02060219,62666.0,62665.0,0.01239797]
[1721013528877,0.01753866,62666.0,62665.0,0.004]
[1721013529482,0.01753866,62666.0,62665.0,0.01240131]
[1721013529783,0.01753866,62666.0,62665.0,0.004]
[1721013529974,0.01753866,62666.0,62665.0,0.01240131]
[1721013530168,0.01753866,62666.0,62665.0,0.004]
[1721013530367,0.01753866,62666.0,62665.0,0.01240131]
[1721013530571,0.01753866,62666.0,62665.0,0.004]
[1721013530936,0.01753866,62666.0,62665.0,0.01240131]
[1721013531142,0.01753866,62666.0,62665.0,0.14762]
[1721013531343,0.01753866,62666.0,62665.0,0.15602131]
[1721013532365,0.01753866,62666.0,62665.0,0.01240131]
[1721013533151,0.39088282,62666.0,62665.0,0.01240131]
[1721013533355,0.39394635,62666.0,62665.0,0.01240131]
[1721013533560,0.39394635,62666.0,62665.0,0.004]
[1721013533561,1.47871182,62666.0,62665.0,0.004]
[1721013533861,1.57871182,62666.0,62665.0,0.004]
[1721013534055,1.86901235,62666.0,62665.0,0.004]
[1721013534284,1.64177535,62666.0,62665.0,0.004]
[1721013534605,1.69140989,62666.0,62665.0,0.004]
[1721013534810,2.07412648,62666.0,62665.0,0.004]
[1721013534950,1.97558336,62666.0,62665.0,0.004]
[1721013535149,1.17459616,62652.0,62651.0,0.4771]
[1721013535336,0.45510616,62647.0,62646.0,0.000913]
[1721013535733,0.74243016,62647.0,62646.0,0.000913]
[1721013536163,0.690986,62647.0,62646.0,0.000913]
[1721013536497,0.74549369,62647.0,62646.0,0.000913]
[1721013536813,0.74243016,62647.0,62646.0,0.000913]
[1721013537156,0.690986,62647.0,62646.0,0.000913]
[1721013537505,0.69404953,62647.0,62646.0,0.009913]
[1721013537977,1.03381769,62647.0,62646.0,0.009913]
[1721013538249,1.03075416,62647.0,62646.0,0.000913]
[1721013538660,0.97931,62647.0,62646.0,0.000913]
[1721013538887,0.01670866,62648.0,62646.0,0.000913]
[1721013539069,0.00306353,62647.0,62646.0,0.000913]
[1721013539516,0.00306353,62647.0,62646.0,0.0094987]